[Event "Titled Tuesday Blitz November 15 Late 2022"]
[White "Sanchez Enriquez, Oscar Gerardo"]
[Black "Garcia Pantoja, Roberto"]
[WhiteFideId "5106311"]
[BlackFideId "3509265"]
[WhiteElo "2375"]
[BlackElo "2524"]
[Result "0-1"]
[Round "07"]
[TimeControl "180+1"]
[Date "2022.11.16"]
[WhiteClock "0:00:14"]
[BlackClock "0:00:42"]

1. e4 {[%clk 0:03:00]}  c5 {[%clk 0:02:55]} 2. Nf3 {[%clk 0:03:01]}  d6 {[%clk 0:02:55]} 3. Bc4 {[%clk 0:03:01]}  Nf6 {[%clk 0:02:54]} 4. Qe2 {[%clk 0:03:01]}  Nc6 {[%clk 0:02:53]} 5. h3 {[%clk 0:03:01]}  e6 {[%clk 0:02:51]} 6. Bb3 {[%clk 0:03:02]}  Be7 {[%clk 0:02:51]} 7. O-O {[%clk 0:03:02]}  O-O {[%clk 0:02:51]} 8. c3 {[%clk 0:03:03]}  b6 {[%clk 0:02:49]} 9. d4 {[%clk 0:03:03]}  Bb7 {[%clk 0:02:47]} 10. e5 {[%clk 0:03:02]}  Nd5 {[%clk 0:02:45]} 11. dxc5 {[%clk 0:03:00]}  dxe5 {[%clk 0:02:42]} 12. cxb6 {[%clk 0:02:48]}  Qxb6 {[%clk 0:02:39]} 13. Nxe5 {[%clk 0:02:46]}  Nxe5 {[%clk 0:02:39]} 14. Qxe5 {[%clk 0:02:47]}  Bd6 {[%clk 0:02:35]} 15. Qh5 {[%clk 0:02:42]}  a5 {[%clk 0:02:33]} 16. Na3 {[%clk 0:02:29]}  Bxa3 {[%clk 0:02:31]} 17. bxa3 {[%clk 0:02:28]}  a4 {[%clk 0:02:29]} 18. Bc2 {[%clk 0:02:24]}  f5 {[%clk 0:02:05]} 19. c4 {[%clk 0:01:37]}  Nf6 {[%clk 0:02:01]} 20. Qh4 {[%clk 0:01:32]}  Qc6 {[%clk 0:01:57]} 21. f3 {[%clk 0:01:30]}  Qc5+ {[%clk 0:01:53]} 22. Kh1 {[%clk 0:01:28]}  Ba6 {[%clk 0:01:50]} 23. Bd3 {[%clk 0:01:14]}  Rad8 {[%clk 0:01:48]} 24. Be2 {[%clk 0:01:14]}  e5 {[%clk 0:01:42]} 25. Rb1 {[%clk 0:01:09]}  f4 {[%clk 0:01:39]} 26. Qf2 {[%clk 0:00:58]}  Qc8 {[%clk 0:01:29]} 27. Re1 {[%clk 0:00:44]}  Bxc4 {[%clk 0:01:23]} 28. Bxc4+ {[%clk 0:00:37]}  Qxc4 {[%clk 0:01:23]} 29. Rb4 {[%clk 0:00:37]}  Qd5 {[%clk 0:01:05]} 30. Bb2 {[%clk 0:00:36]}  Rfe8 {[%clk 0:01:04]} 31. Qe2 {[%clk 0:00:25]}  Qf7 {[%clk 0:00:51]} 32. Qc4 {[%clk 0:00:23]}  Nd5 {[%clk 0:00:51]} 33. Rxa4 {[%clk 0:00:21]}  Rc8 {[%clk 0:00:49]} 34. Qb3 {[%clk 0:00:20]}  Rb8 {[%clk 0:00:49]} 35. Qc2 {[%clk 0:00:15]}  Ne3 {[%clk 0:00:48]} 36. Qe2 {[%clk 0:00:14]}  Qxa2 {[%clk 0:00:44]} 37. Bc3 {[%clk 0:00:14]}  Qb3 {[%clk 0:00:42]} 0-1


[Site "https://www.chess.com"]

[Event "Titled Tuesday Blitz November 15 Late 2022"]
[White "Sarkar, Justin"]
[Black "Mendonca, Mateus Nakajo"]
[WhiteFideId "2010011"]
[BlackFideId "2110954"]
[WhiteElo "2239"]
[BlackElo "2310"]
[Result "0-1"]
[Round "07"]
[TimeControl "180+1"]
[Date "2022.11.16"]
[WhiteClock "0:00:02"]
[BlackClock "0:00:31"]

1. e4 {[%clk 0:02:39]}  c5 {[%clk 0:02:58]} 2. Nf3 {[%clk 0:02:38]}  e6 {[%clk 0:02:57]} 3. d4 {[%clk 0:02:37]}  cxd4 {[%clk 0:02:58]} 4. Nxd4 {[%clk 0:02:37]}  Nc6 {[%clk 0:02:58]} 5. Nb5 {[%clk 0:02:34]}  d6 {[%clk 0:02:57]} 6. c4 {[%clk 0:02:33]}  Nf6 {[%clk 0:02:55]} 7. N1c3 {[%clk 0:02:33]}  a6 {[%clk 0:02:54]} 8. Na3 {[%clk 0:02:32]}  Be7 {[%clk 0:02:52]} 9. Be2 {[%clk 0:02:32]}  Qa5 {[%clk 0:02:52]} 10. O-O {[%clk 0:02:28]}  O-O {[%clk 0:02:52]} 11. Nc2 {[%clk 0:02:21]}  Rd8 {[%clk 0:02:41]} 12. a3 {[%clk 0:01:47]}  Qc7 {[%clk 0:02:11]} 13. f4 {[%clk 0:01:26]}  b6 {[%clk 0:01:58]} 14. b4 {[%clk 0:01:17]}  Bb7 {[%clk 0:01:57]} 15. Bb2 {[%clk 0:01:12]}  Rac8 {[%clk 0:01:49]} 16. Rc1 {[%clk 0:01:09]}  Nb8 {[%clk 0:01:49]} 17. Qd3 {[%clk 0:01:05]}  Nbd7 {[%clk 0:01:39]} 18. Ne3 {[%clk 0:00:49]}  Qb8 {[%clk 0:01:26]} 19. g4 {[%clk 0:00:32]}  Qa8 {[%clk 0:01:19]} 20. Bf3 {[%clk 0:00:30]}  b5 {[%clk 0:01:14]} 21. cxb5 {[%clk 0:00:22]}  axb5 {[%clk 0:01:14]} 22. g5 {[%clk 0:00:22]}  Ne8 {[%clk 0:01:07]} 23. Nxb5 {[%clk 0:00:17]}  Ba6 {[%clk 0:01:04]} 24. a4 {[%clk 0:00:14]}  Nb6 {[%clk 0:01:00]} 25. Qb3 {[%clk 0:00:08]}  Qb8 {[%clk 0:00:43]} 26. h4 {[%clk 0:00:05]}  Nxa4 {[%clk 0:00:42]} 27. Nd4 {[%clk 0:00:03]}  Nxb2 {[%clk 0:00:40]} 28. Nc6 {[%clk 0:00:02]}  Rxc6 {[%clk 0:00:35]} 29. Rxc6 {[%clk 0:00:02]}  Bxf1 {[%clk 0:00:34]} 30. Kxf1 {[%clk 0:00:02]}  Qb5+ {[%clk 0:00:31]} 0-1


[Site "https://www.chess.com"]

[Event "Titled Tuesday Blitz November 15 Late 2022"]
[White "Shimanov, Aleksandr"]
[Black "Eljanov, Pavel"]
[WhiteFideId "4198603"]
[BlackFideId "14102951"]
[WhiteElo "2605"]
[BlackElo "2601"]
[Result "0-1"]
[Round "07"]
[TimeControl "180+1"]
[Date "2022.11.15"]
[WhiteClock "0:00:02"]
[BlackClock "0:00:06"]

1. e4 {[%clk 0:02:56]}  e5 {[%clk 0:03:00]} 2. Nf3 {[%clk 0:02:55]}  Nc6 {[%clk 0:03:00]} 3. Nc3 {[%clk 0:02:56]}  Nf6 {[%clk 0:03:00]} 4. h3 {[%clk 0:02:56]}  d5 {[%clk 0:02:55]} 5. exd5 {[%clk 0:02:57]}  Nxd5 {[%clk 0:02:55]} 6. Bb5 {[%clk 0:02:56]}  Nxc3 {[%clk 0:02:54]} 7. bxc3 {[%clk 0:02:57]}  Bd6 {[%clk 0:02:55]} 8. O-O {[%clk 0:02:57]}  O-O {[%clk 0:02:54]} 9. Re1 {[%clk 0:02:57]}  Re8 {[%clk 0:02:49]} 10. d4 {[%clk 0:02:57]}  exd4 {[%clk 0:02:50]} 11. Rxe8+ {[%clk 0:02:58]}  Qxe8 {[%clk 0:02:50]} 12. cxd4 {[%clk 0:02:59]}  Bd7 {[%clk 0:02:47]} 13. Bb2 {[%clk 0:02:44]}  Ne7 {[%clk 0:02:36]} 14. Bf1 {[%clk 0:02:39]}  b5 {[%clk 0:02:30]} 15. Qd2 {[%clk 0:02:17]}  Bc6 {[%clk 0:02:09]} 16. Ne5 {[%clk 0:02:16]}  Bd5 {[%clk 0:02:03]} 17. a4 {[%clk 0:02:01]}  b4 {[%clk 0:02:01]} 18. a5 {[%clk 0:01:59]}  Rb8 {[%clk 0:01:19]} 19. Re1 {[%clk 0:01:57]}  Qd8 {[%clk 0:01:06]} 20. Bd3 {[%clk 0:01:48]}  Ng6 {[%clk 0:01:05]} 21. a6 {[%clk 0:01:43]}  Qh4 {[%clk 0:00:54]} 22. Qe3 {[%clk 0:01:15]}  Rd8 {[%clk 0:00:36]} 23. Nf3 {[%clk 0:00:50]}  Qf4 {[%clk 0:00:34]} 24. Ne5 {[%clk 0:00:32]}  Qxe3 {[%clk 0:00:26]} 25. Rxe3 {[%clk 0:00:21]}  Nxe5 {[%clk 0:00:26]} 26. dxe5 {[%clk 0:00:20]}  Bc5 {[%clk 0:00:26]} 27. Rg3 {[%clk 0:00:18]}  Be6 {[%clk 0:00:23]} 28. Kf1 {[%clk 0:00:17]}  Kf8 {[%clk 0:00:23]} 29. f4 {[%clk 0:00:17]}  g6 {[%clk 0:00:23]} 30. Ke1 {[%clk 0:00:16]}  Bd4 {[%clk 0:00:20]} 31. Bc1 {[%clk 0:00:14]}  c5 {[%clk 0:00:20]} 32. Rf3 {[%clk 0:00:11]}  c4 {[%clk 0:00:20]} 33. Be4 {[%clk 0:00:12]}  h5 {[%clk 0:00:18]} 34. f5 {[%clk 0:00:11]}  gxf5 {[%clk 0:00:18]} 35. Bxf5 {[%clk 0:00:12]}  Rd5 {[%clk 0:00:19]} 36. Bxe6 {[%clk 0:00:07]}  Rxe5+ {[%clk 0:00:19]} 37. Kd1 {[%clk 0:00:07]}  Rxe6 {[%clk 0:00:20]} 38. Rf4 {[%clk 0:00:04]}  Rd6 {[%clk 0:00:20]} 39. Ke2 {[%clk 0:00:04]}  b3 {[%clk 0:00:19]} 40. Ba3 {[%clk 0:00:02]}  Be5 {[%clk 0:00:10]} 41. Bxd6+ {[%clk 0:00:02]}  Bxd6 {[%clk 0:00:10]} 42. Rf1 {[%clk 0:00:02]}  b2 {[%clk 0:00:07]} 43. Kd2 {[%clk 0:00:02]}  Bf4+ {[%clk 0:00:06]} 0-1


[Site "https://www.chess.com"]

[Event "Titled Tuesday Blitz November 15 Late 2022"]
[White "Shuvalova, Polina"]
[Black "Petrovic, Aleksa"]
[WhiteFideId "24171760"]
[BlackFideId "967629"]
[WhiteElo "2342"]
[BlackElo "2224"]
[Result "0-1"]
[Round "07"]
[TimeControl "180+1"]
[Date "2022.11.16"]
[WhiteClock "0:00:04"]
[BlackClock "0:00:04"]

1. d4 {[%clk 0:03:00]}  Nf6 {[%clk 0:02:59]} 2. Nf3 {[%clk 0:03:01]}  e6 {[%clk 0:02:59]} 3. Bf4 {[%clk 0:02:59]}  c5 {[%clk 0:02:59]} 4. e3 {[%clk 0:02:58]}  Qb6 {[%clk 0:02:59]} 5. Qc1 {[%clk 0:02:50]}  Nc6 {[%clk 0:02:59]} 6. c3 {[%clk 0:02:50]}  Nh5 {[%clk 0:02:59]} 7. Bg3 {[%clk 0:02:45]}  Nxg3 {[%clk 0:02:57]} 8. hxg3 {[%clk 0:02:46]}  d5 {[%clk 0:02:54]} 9. Bd3 {[%clk 0:02:44]}  g6 {[%clk 0:02:51]} 10. Nbd2 {[%clk 0:02:44]}  Bg7 {[%clk 0:02:51]} 11. Qc2 {[%clk 0:02:36]}  Bd7 {[%clk 0:02:40]} 12. g4 {[%clk 0:02:35]}  Rc8 {[%clk 0:02:38]} 13. Qb3 {[%clk 0:02:31]}  Qc7 {[%clk 0:02:08]} 14. Qd1 {[%clk 0:02:24]}  e5 {[%clk 0:02:03]} 15. dxe5 {[%clk 0:02:20]}  Bxg4 {[%clk 0:02:01]} 16. Qa4 {[%clk 0:02:14]}  Bxf3 {[%clk 0:01:41]} 17. Nxf3 {[%clk 0:02:13]}  Bxe5 {[%clk 0:01:38]} 18. Nxe5 {[%clk 0:02:07]}  Qxe5 {[%clk 0:01:39]} 19. O-O-O {[%clk 0:01:59]}  O-O {[%clk 0:01:13]} 20. Qh4 {[%clk 0:01:54]}  Qg7 {[%clk 0:01:14]} 21. Be2 {[%clk 0:01:49]}  d4 {[%clk 0:01:10]} 22. Bg4 {[%clk 0:01:23]}  Rcd8 {[%clk 0:01:01]} 23. exd4 {[%clk 0:01:11]}  cxd4 {[%clk 0:01:01]} 24. cxd4 {[%clk 0:01:11]}  Rxd4 {[%clk 0:00:51]} 25. Rxd4 {[%clk 0:01:11]}  Nxd4 {[%clk 0:00:52]} 26. Kb1 {[%clk 0:01:10]}  h5 {[%clk 0:00:46]} 27. Bd7 {[%clk 0:01:02]}  Qe5 {[%clk 0:00:39]} 28. Rd1 {[%clk 0:01:00]}  Nf5 {[%clk 0:00:28]} 29. Bxf5 {[%clk 0:00:58]}  Qxf5+ {[%clk 0:00:28]} 30. Ka1 {[%clk 0:00:58]}  Re8 {[%clk 0:00:28]} 31. a3 {[%clk 0:00:48]}  Qc2 {[%clk 0:00:21]} 32. Qd4 {[%clk 0:00:45]}  Re2 {[%clk 0:00:19]} 33. Rf1 {[%clk 0:00:34]}  b5 {[%clk 0:00:16]} 34. f4 {[%clk 0:00:30]}  Qe4 {[%clk 0:00:09]} 35. Qxa7 {[%clk 0:00:20]}  Qxg2 {[%clk 0:00:09]} 36. Rb1 {[%clk 0:00:17]}  h4 {[%clk 0:00:08]} 37. Qb8+ {[%clk 0:00:16]}  Kg7 {[%clk 0:00:07]} 38. f5 {[%clk 0:00:16]}  gxf5 {[%clk 0:00:06]} 39. Qxb5 {[%clk 0:00:16]}  h3 {[%clk 0:00:05]} 40. Qxf5 {[%clk 0:00:15]}  h2 {[%clk 0:00:06]} 41. Qh5 {[%clk 0:00:15]}  Qg6 {[%clk 0:00:04]} 42. Qh4 {[%clk 0:00:13]}  Rg2 {[%clk 0:00:03]} 43. Qd4+ {[%clk 0:00:12]}  f6 {[%clk 0:00:03]} 44. Qd7+ {[%clk 0:00:11]}  Kh6 {[%clk 0:00:03]} 45. Qh3+ {[%clk 0:00:11]}  Kg7 {[%clk 0:00:04]} 46. Ka2 {[%clk 0:00:09]}  Rg1 {[%clk 0:00:03]} 47. Qd7+ {[%clk 0:00:05]}  Qf7+ {[%clk 0:00:03]} 48. Qxf7+ {[%clk 0:00:04]}  Kxf7 {[%clk 0:00:04]} 0-1


[Site "https://www.chess.com"]

[Event "Titled Tuesday Blitz November 15 Late 2022"]
[White "Sohal, Tanraj"]
[Black "Har-Zvi, Ronen"]
[WhiteFideId "2608499"]
[BlackFideId "2801485"]
[WhiteElo "2200"]
[BlackElo "2523"]
[Result "0-1"]
[Round "07"]
[TimeControl "180+1"]
[Date "2022.11.16"]
[WhiteClock "0:00:03"]
[BlackClock "0:00:25"]

1. e4 {[%clk 0:03:00]}  c6 {[%clk 0:03:00]} 2. d4 {[%clk 0:02:59]}  d5 {[%clk 0:03:01]} 3. exd5 {[%clk 0:03:00]}  cxd5 {[%clk 0:03:01]} 4. c4 {[%clk 0:03:01]}  Nf6 {[%clk 0:03:01]} 5. Nf3 {[%clk 0:02:58]}  Bg4 {[%clk 0:03:00]} 6. Nc3 {[%clk 0:02:58]}  e6 {[%clk 0:02:59]} 7. Be2 {[%clk 0:02:58]}  Nc6 {[%clk 0:02:58]} 8. O-O {[%clk 0:02:56]}  dxc4 {[%clk 0:02:57]} 9. Bxc4 {[%clk 0:02:54]}  Be7 {[%clk 0:02:57]} 10. Be3 {[%clk 0:02:54]}  O-O {[%clk 0:02:57]} 11. Be2 {[%clk 0:02:54]}  Rc8 {[%clk 0:02:56]} 12. h3 {[%clk 0:02:55]}  Bh5 {[%clk 0:02:56]} 13. Rc1 {[%clk 0:02:56]}  Nb4 {[%clk 0:02:55]} 14. a3 {[%clk 0:02:49]}  Nbd5 {[%clk 0:02:53]} 15. Qd2 {[%clk 0:02:49]}  Nxc3 {[%clk 0:02:50]} 16. Rxc3 {[%clk 0:02:41]}  Qd5 {[%clk 0:02:44]} 17. Rxc8 {[%clk 0:02:38]}  Rxc8 {[%clk 0:02:44]} 18. Ne5 {[%clk 0:02:38]}  Bxe2 {[%clk 0:02:38]} 19. Qxe2 {[%clk 0:02:38]}  h6 {[%clk 0:02:36]} 20. Qd2 {[%clk 0:02:34]}  Bd6 {[%clk 0:02:32]} 21. Rc1 {[%clk 0:02:28]}  Rd8 {[%clk 0:02:23]} 22. Qc2 {[%clk 0:02:26]}  a6 {[%clk 0:02:19]} 23. Nf3 {[%clk 0:02:25]}  Qb5 {[%clk 0:02:17]} 24. b4 {[%clk 0:02:21]}  Nd5 {[%clk 0:02:17]} 25. Qc4 {[%clk 0:02:18]}  Qe8 {[%clk 0:02:15]} 26. Bd2 {[%clk 0:02:15]}  Ne7 {[%clk 0:02:13]} 27. Qc2 {[%clk 0:02:04]}  Rc8 {[%clk 0:02:13]} 28. Qd3 {[%clk 0:02:02]}  Rxc1+ {[%clk 0:02:11]} 29. Bxc1 {[%clk 0:02:02]}  Qc6 {[%clk 0:02:11]} 30. Bd2 {[%clk 0:01:58]}  Nd5 {[%clk 0:02:11]} 31. Qb1 {[%clk 0:01:49]}  Qc4 {[%clk 0:02:08]} 32. Qc1 {[%clk 0:01:49]}  Qxc1+ {[%clk 0:02:06]} 33. Bxc1 {[%clk 0:01:49]}  b5 {[%clk 0:02:05]} 34. Kf1 {[%clk 0:01:47]}  f6 {[%clk 0:02:02]} 35. Ke2 {[%clk 0:01:43]}  Kf7 {[%clk 0:02:02]} 36. Kd3 {[%clk 0:01:43]}  Bf4 {[%clk 0:01:59]} 37. Bb2 {[%clk 0:01:38]}  h5 {[%clk 0:01:59]} 38. g3 {[%clk 0:01:38]}  Bd6 {[%clk 0:01:58]} 39. h4 {[%clk 0:01:28]}  Kg6 {[%clk 0:01:57]} 40. Ke4 {[%clk 0:01:25]}  Kf7 {[%clk 0:01:52]} 41. Ne1 {[%clk 0:01:24]}  g5 {[%clk 0:01:49]} 42. hxg5 {[%clk 0:01:14]}  fxg5 {[%clk 0:01:49]} 43. Bc1 {[%clk 0:01:13]}  Kg6 {[%clk 0:01:39]} 44. Nf3 {[%clk 0:01:13]}  Nf6+ {[%clk 0:01:38]} 45. Kd3 {[%clk 0:01:13]}  g4 {[%clk 0:01:38]} 46. Nh4+ {[%clk 0:01:05]}  Kf7 {[%clk 0:01:38]} 47. Ng2 {[%clk 0:01:00]}  Nd5 {[%clk 0:01:36]} 48. Ke4 {[%clk 0:00:57]}  Nf6+ {[%clk 0:01:26]} 49. Kd3 {[%clk 0:00:54]}  Bc7 {[%clk 0:01:18]} 50. Bf4 {[%clk 0:00:51]}  Bb6 {[%clk 0:01:16]} 51. Be5 {[%clk 0:00:35]}  Nd5 {[%clk 0:01:16]} 52. Nf4 {[%clk 0:00:31]}  Nxf4+ {[%clk 0:01:12]} 53. Bxf4 {[%clk 0:00:31]}  a5 {[%clk 0:01:11]} 54. Ke4 {[%clk 0:00:18]}  axb4 {[%clk 0:01:05]} 55. axb4 {[%clk 0:00:18]}  Bd8 {[%clk 0:01:02]} 56. d5 {[%clk 0:00:13]}  Bb6 {[%clk 0:01:00]} 57. dxe6+ {[%clk 0:00:06]}  Kxe6 {[%clk 0:01:00]} 58. Be3 {[%clk 0:00:06]}  Bd8 {[%clk 0:00:44]} 59. Bc5 {[%clk 0:00:04]}  Bf6 {[%clk 0:00:38]} 60. Kf4 {[%clk 0:00:03]}  Bd8 {[%clk 0:00:34]} 61. Ke4 {[%clk 0:00:01]}  Bg5 {[%clk 0:00:34]} 62. Kd3 {[%clk 0:00:01]}  Kd5 {[%clk 0:00:34]} 63. Ke2 {[%clk 0:00:01]}  Ke4 {[%clk 0:00:32]} 64. Bd6 {[%clk 0:00:01]}  Bf6 {[%clk 0:00:31]} 65. Bc5 {[%clk 0:00:01]}  Bc3 {[%clk 0:00:31]} 66. Be7 {[%clk 0:00:01]}  Kd5 {[%clk 0:00:30]} 67. f3 {[%clk 0:00:01]}  Kc4 {[%clk 0:00:30]} 68. fxg4 {[%clk 0:00:01]}  hxg4 {[%clk 0:00:30]} 69. Ke3 {[%clk 0:00:02]}  Bxb4 {[%clk 0:00:30]} 70. Bf6 {[%clk 0:00:03]}  Bd6 {[%clk 0:00:31]} 71. Ke4 {[%clk 0:00:02]}  Bxg3 {[%clk 0:00:27]} 72. Kf5 {[%clk 0:00:02]}  b4 {[%clk 0:00:25]} 73. Kxg4 {[%clk 0:00:02]}  Bf2 {[%clk 0:00:26]} 74. Bg5 {[%clk 0:00:03]}  b3 {[%clk 0:00:25]} 75. Bc1 {[%clk 0:00:03]}  Kc3 {[%clk 0:00:24]} 76. Kf3 {[%clk 0:00:04]}  Kc2 {[%clk 0:00:24]} 77. Ba3 {[%clk 0:00:03]}  Bc5 {[%clk 0:00:25]} 0-1


[Site "https://www.chess.com"]

[Event "Titled Tuesday Blitz November 15 Late 2022"]
[White "Souleidis, Georgios"]
[Black "Hoffmann, Asa"]
[WhiteFideId "4206827"]
[BlackFideId "2001470"]
[WhiteElo "2401"]
[BlackElo "2117"]
[Result "1/2-1/2"]
[Round "07"]
[TimeControl "180+1"]
[Date "2022.11.16"]
[WhiteClock "0:00:24"]
[BlackClock "0:00:04"]

1. e4 {[%clk 0:03:00]}  d6 {[%clk 0:02:58]} 2. d4 {[%clk 0:03:00]}  Nf6 {[%clk 0:02:55]} 3. Nc3 {[%clk 0:03:00]}  c6 {[%clk 0:02:55]} 4. f4 {[%clk 0:02:59]}  Qa5 {[%clk 0:02:52]} 5. Bd3 {[%clk 0:02:56]}  e5 {[%clk 0:02:51]} 6. Nf3 {[%clk 0:02:56]}  exd4 {[%clk 0:02:50]} 7. Nxd4 {[%clk 0:02:56]}  Qb6 {[%clk 0:02:50]} 8. Nb3 {[%clk 0:02:52]}  a5 {[%clk 0:02:47]} 9. a4 {[%clk 0:02:52]}  Bg4 {[%clk 0:02:46]} 10. Qd2 {[%clk 0:02:49]}  Be7 {[%clk 0:02:38]} 11. h3 {[%clk 0:02:48]}  Be6 {[%clk 0:02:38]} 12. Qe3 {[%clk 0:02:42]}  Nbd7 {[%clk 0:02:31]} 13. Nd4 {[%clk 0:02:34]}  Nc5 {[%clk 0:02:26]} 14. O-O {[%clk 0:02:03]}  Nxd3 {[%clk 0:02:19]} 15. cxd3 {[%clk 0:02:01]}  Bd7 {[%clk 0:02:18]} 16. Qf2 {[%clk 0:01:53]}  O-O {[%clk 0:02:16]} 17. Be3 {[%clk 0:01:53]}  Qc7 {[%clk 0:02:15]} 18. g4 {[%clk 0:01:44]}  Ne8 {[%clk 0:02:02]} 19. Qg3 {[%clk 0:01:39]}  f6 {[%clk 0:01:47]} 20. h4 {[%clk 0:01:39]}  Rd8 {[%clk 0:01:39]} 21. f5 {[%clk 0:01:37]}  d5 {[%clk 0:01:35]} 22. Qxc7 {[%clk 0:01:22]}  Nxc7 {[%clk 0:01:35]} 23. Bf4 {[%clk 0:01:23]}  Na6 {[%clk 0:01:31]} 24. exd5 {[%clk 0:01:19]}  Bc5 {[%clk 0:01:29]} 25. Be3 {[%clk 0:01:17]}  Nb4 {[%clk 0:01:26]} 26. Rad1 {[%clk 0:01:12]}  cxd5 {[%clk 0:01:23]} 27. Bf2 {[%clk 0:01:12]}  Rfe8 {[%clk 0:01:20]} 28. Ndb5 {[%clk 0:01:06]}  Bxf2+ {[%clk 0:01:14]} 29. Kxf2 {[%clk 0:01:07]}  Bc6 {[%clk 0:01:12]} 30. Nd4 {[%clk 0:01:05]}  Re7 {[%clk 0:01:07]} 31. Ne6 {[%clk 0:00:57]}  Rd6 {[%clk 0:01:04]} 32. d4 {[%clk 0:00:55]}  Bd7 {[%clk 0:00:57]} 33. Nf4 {[%clk 0:00:52]}  Bc6 {[%clk 0:00:56]} 34. h5 {[%clk 0:00:51]}  Kf7 {[%clk 0:00:55]} 35. Rfe1 {[%clk 0:00:46]}  Rxe1 {[%clk 0:00:54]} 36. Kxe1 {[%clk 0:00:47]}  Rd7 {[%clk 0:00:46]} 37. Kd2 {[%clk 0:00:47]}  Re7 {[%clk 0:00:45]} 38. Rg1 {[%clk 0:00:47]}  h6 {[%clk 0:00:43]} 39. Rg3 {[%clk 0:00:48]}  Re8 {[%clk 0:00:39]} 40. Ne6 {[%clk 0:00:47]}  Bd7 {[%clk 0:00:37]} 41. Nc5 {[%clk 0:00:47]}  Bc6 {[%clk 0:00:37]} 42. Nd3 {[%clk 0:00:45]}  b6 {[%clk 0:00:32]} 43. Nf4 {[%clk 0:00:38]}  Rd8 {[%clk 0:00:28]} 44. Re3 {[%clk 0:00:37]}  Re8 {[%clk 0:00:27]} 45. Rg3 {[%clk 0:00:31]}  Re7 {[%clk 0:00:26]} 46. Ne6 {[%clk 0:00:31]}  Bd7 {[%clk 0:00:26]} 47. Nf4 {[%clk 0:00:26]}  Bc6 {[%clk 0:00:26]} 48. Re3 {[%clk 0:00:26]}  Rxe3 {[%clk 0:00:25]} 49. Kxe3 {[%clk 0:00:27]}  Ke7 {[%clk 0:00:25]} 50. Ne6 {[%clk 0:00:24]}  Bd7 {[%clk 0:00:17]} 51. Nxg7 {[%clk 0:00:23]}  Kd6 {[%clk 0:00:17]} 52. Ne2 {[%clk 0:00:21]}  Bxa4 {[%clk 0:00:14]} 53. Nf4 {[%clk 0:00:22]}  Bd7 {[%clk 0:00:13]} 54. Nfe6 {[%clk 0:00:21]}  Bxe6 {[%clk 0:00:12]} 55. fxe6 {[%clk 0:00:21]}  Ke7 {[%clk 0:00:12]} 56. Nf5+ {[%clk 0:00:21]}  Kxe6 {[%clk 0:00:12]} 57. Nxh6 {[%clk 0:00:22]}  b5 {[%clk 0:00:11]} 58. Kd2 {[%clk 0:00:22]}  Nc6 {[%clk 0:00:10]} 59. Nf5 {[%clk 0:00:23]}  b4 {[%clk 0:00:08]} 60. Kd3 {[%clk 0:00:23]}  a4 {[%clk 0:00:08]} 61. Kc2 {[%clk 0:00:22]}  Ne7 {[%clk 0:00:06]} 62. Ne3 {[%clk 0:00:20]}  Ng8 {[%clk 0:00:05]} 63. Kd3 {[%clk 0:00:20]}  Nh6 {[%clk 0:00:05]} 64. Ke2 {[%clk 0:00:20]}  a3 {[%clk 0:00:05]} 65. bxa3 {[%clk 0:00:21]}  bxa3 {[%clk 0:00:05]} 66. Kd3 {[%clk 0:00:22]}  a2 {[%clk 0:00:05]} 67. Nc2 {[%clk 0:00:21]}  Nxg4 {[%clk 0:00:05]} 68. Kc3 {[%clk 0:00:21]}  Kf5 {[%clk 0:00:05]} 69. Kb2 {[%clk 0:00:21]}  Kg5 {[%clk 0:00:05]} 70. Kxa2 {[%clk 0:00:20]}  Kxh5 {[%clk 0:00:05]} 71. Nb4 {[%clk 0:00:21]}  Ne3 {[%clk 0:00:04]} 72. Kb3 {[%clk 0:00:22]}  f5 {[%clk 0:00:04]} 73. Kc3 {[%clk 0:00:23]}  f4 {[%clk 0:00:04]} 74. Kd3 {[%clk 0:00:24]}  Kg4 {[%clk 0:00:04]} 75. Ke2 {[%clk 0:00:23]}  Nf5 {[%clk 0:00:04]} 76. Nxd5 {[%clk 0:00:23]}  Nxd4+ {[%clk 0:00:04]} 77. Kf2 {[%clk 0:00:24]}  Nf5 {[%clk 0:00:04]} 78. Nxf4 {[%clk 0:00:24]} 1/2-1/2


[Site "https://www.chess.com"]